fUSD/lending_fUSD_20250405
["ID","MTS","AMOUNT","RATE_DAILY","PERIOD"]
[357183423,1743871840232,-528.91794588,0.00030136,2]
[357183424,1743871840241,-500.0,0.00030136,2]
[357183425,1743871840251,-500.0,0.00030136,2]
[357183426,1743871840261,-519.89918623,0.00030136,2]
[357183427,1743871840270,-524.12500122,0.00030136,2]
[357183428,1743871840280,-500.0,0.00030136,2]
[357183429,1743871840293,-516.91437585,0.00030136,2]
[357183430,1743871840303,-520.85745833,0.00030136,2]
[357183432,1743871840312,-500.0,0.00030136,2]
[357183433,1743871840322,-500.0,0.00030136,2]
[357183434,1743871840333,-153.68996381,0.00030136,2]
[357183435,1743871840342,-510.5081526,0.00030136,2]
[357183436,1743871840352,-500.0,0.00030136,2]
[357183437,1743871840361,-500.0,0.00030136,2]
[357183438,1743871840371,-500.0,0.00030136,2]
[357183439,1743871840380,-500.0,0.00030136,2]
[357183440,1743871840390,-507.7714071,0.00030136,2]
[357183441,1743871840399,-511.63051385,0.00030136,2]
[357183442,1743871840408,-527.6968441,0.00030136,2]
[357183443,1743871840418,-1037.47,0.00030136,2]
[357183444,1743871840427,-5118.78448625,0.00030136,2]
[357183445,1743871840436,-500.0,0.00030136,2]
[357183446,1743871840446,-518.8021181,0.00030136,2]
[357183447,1743871840455,-555.91421778,0.00030136,2]
[357183448,1743871840465,-529.69339741,0.00030136,2]
[357183449,1743871840474,-500.0,0.00030136,2]
[357183450,1743871840483,-500.0,0.00030136,2]
[357183451,1743871840493,-526.78276193,0.00030136,2]
[357183452,1743871840503,-512.10120459,0.00030136,2]
[357183453,1743871840512,-500.0,0.00030136,2]
[357183454,1743871840521,-508.37852574,0.00030136,2]
[357183455,1743871840531,-448.58537507,0.00030136,2]
[357183456,1743871840541,-510.35941763,0.00030136,2]
[357183457,1743871840550,-505.18298115,0.00030136,2]
[357183458,1743871840559,-525.84150661,0.00030136,2]
[357183459,1743871840569,-500.0,0.00030136,2]
[357183460,1743871840578,-511.40677429,0.00030136,2]
[357183461,1743871840587,-419.91186277,0.00030136,2]
[357183462,1743871840596,-500.0,0.00030136,2]
[357183463,1743871840605,-500.0,0.00030136,2]
[357183464,1743871840615,-527.63993777,0.00030136,2]
[357183465,1743871840624,-506.01340344,0.00030136,2]
[357183466,1743871840633,-511.71225205,0.00030136,2]
[357183467,1743871840643,-509.13340703,0.00030136,2]
[357183468,1743871840653,-519.49296212,0.00030136,2]
[357183469,1743871840662,-516.5036726,0.00030136,2]
[357183470,1743871840671,-503.64313504,0.00030136,2]
[357183471,1743871840682,-509.41021025,0.00030136,2]
[357183472,1743871840691,-512.60958313,0.00030136,2]
[357183473,1743871840700,-500.0,0.00030136,2]
[357183474,1743871840709,-500.0,0.00030136,2]
[357183475,1743871840719,-502.44031607,0.00030136,2]
[357183476,1743871840730,-519.62145628,0.00030136,2]
[357183477,1743871840739,-510.65750852,0.00030136,2]
[357183478,1743871840749,-517.95936593,0.00030136,2]
[357183479,1743871840758,-503.15962748,0.00030136,2]
[357183480,1743871840767,-1088.49,0.00030136,2]
[357183481,1743871840777,-1088.49,0.00030136,2]
[357183482,1743871840786,-512.79770847,0.00030136,2]
[357183483,1743871840796,-525.27678245,0.00030136,2]
[357183484,1743871840805,-500.0,0.00030136,2]
[357183485,1743871840814,-626.86963971,0.00030136,2]
[357183486,1743871840823,-500.0,0.00030136,2]
[357183487,1743871840832,-540.82870489,0.00030136,2]
[357183488,1743871840842,-511.11320989,0.00030136,2]
[357183489,1743871840851,-507.17174074,0.00030136,2]
[357183490,1743871840860,-575.75501639,0.00030136,2]
[357183491,1743871840869,-500.0,0.00030136,2]
[357183492,1743871840879,-532.85084045,0.00030136,2]
[357183493,1743871840887,-500.0,0.00030136,2]
[357183494,1743871840898,-500.0,0.00030136,2]
[357183495,1743871840907,-526.0573389,0.00030136,2]
[357183496,1743871840917,-500.0,0.00030136,2]
[357183497,1743871840928,-500.0,0.00030136,2]
[357183498,1743871840938,-516.20788152,0.00030136,88]
[357183499,1743871840948,-500.0,0.00030136,2]
[357183500,1743871840958,-500.0,0.00030136,2]
[357183501,1743871840968,-505.73646463,0.00030136,2]
[357183502,1743871840977,-528.25147061,0.00030136,2]
[357183503,1743871840987,-500.0,0.00030136,2]
[357183504,1743871840996,-501.49,0.00030136,2]
[357183505,1743871841007,-507.3694766,0.00030136,2]
[357183507,1743871841016,-500.0,0.00030136,2]
[357183508,1743871841025,-349.10040878,0.00030136,2]
[357183509,1743871841034,-500.0,0.00030136,2]
[357183510,1743871841043,-514.65431111,0.00030136,2]
[357183511,1743871841053,-549.57163666,0.00030136,2]
[357183512,1743871841063,-500.0,0.00030136,2]
[357183513,1743871841072,-500.0,0.00030136,2]
[357183514,1743871841082,-505.53603519,0.00030136,2]
[357183515,1743871841091,-500.0,0.00030136,2]
[357183516,1743871841100,-526.95907581,0.00030136,2]
[357183517,1743871841109,-546.57010479,0.00030136,2]
[357183518,1743871841208,-500.0,0.00030136,2]
[357183519,1743871841218,-514.56612993,0.00030136,2]
[357183520,1743871841227,-673.21,0.00030136,2]
[357183521,1743871841236,-506.23781611,0.00030136,2]
[357183522,1743871841246,-498.08327618,0.00030136,2]
[357183523,1743871841256,-521.5348882,0.00030136,2]
[357183524,1743871841265,-500.0,0.00030136,2]
[357183525,1743871841274,-515.35551649,0.00030136,2]
[357183526,1743871841284,-500.0,0.00030136,2]
[357183527,1743871841296,-518.92656086,0.00030136,2]
[357183528,1743871841305,-500.0,0.00030136,2]
[357183529,1743871841314,-538.0082809,0.00030136,2]
[357183530,1743871841324,-507.81346978,0.00030136,2]
[357183532,1743871841335,-509.89622402,0.00030136,2]
[357183533,1743871841344,-500.0,0.00030136,2]
[357183534,1743871841353,-516.47407754,0.00030136,2]
[357183535,1743871841364,-503.04602052,0.00030136,2]
[357183536,1743871841373,-513.92602026,0.00030136,2]
[357183537,1743871841383,-529.7596559,0.00030136,2]
[357183538,1743871841392,-511.10120746,0.00030136,2]
[357183539,1743871841402,-500.0,0.00030136,2]
[357183540,1743871841411,-501.28079609,0.00030136,2]
[357183541,1743871841420,-500.0,0.00030136,2]
[357183542,1743871841429,-534.25528202,0.00030136,2]
[357183543,1743871841438,-506.15580656,0.00030136,2]
[357183544,1743871841447,-500.0,0.00030136,2]
[357183545,1743871841458,-586.65761918,0.00030136,2]
[357183546,1743871841468,-521.27420829,0.00030136,2]
[357183547,1743871841478,-504.67658253,0.00030136,2]
[357183548,1743871841489,-543.90783483,0.00030136,2]
[357183549,1743871841499,-500.0,0.00030136,2]
[357183550,1743871841508,-644.02114723,0.00030136,2]
[357183551,1743871841521,-500.0,0.00030136,2]
[357183552,1743871841530,-503.80974145,0.00030136,2]
[357183553,1743871841539,-845.57,0.00030136,2]
[357183554,1743871841548,-522.12636492,0.00030136,2]
[357183555,1743871841558,-512.35888466,0.00030136,2]
[357183556,1743871841567,-500.0,0.00030136,2]
[357183557,1743871841576,-509.50712034,0.00030136,2]
[357183558,1743871841586,-518.77294444,0.00030136,2]
[357183559,1743871841595,-500.0,0.00030136,2]
[357183560,1743871841605,-514.75698607,0.00030136,2]
[357183561,1743871841614,-544.30129718,0.00030136,2]
[357183562,1743871841624,-500.0,0.00030136,2]
[357183563,1743871841634,-502.10157183,0.00030136,2]
[357183564,1743871841643,-544.63359581,0.00030136,2]
[357183565,1743871841653,-500.0,0.00030136,2]
[357183566,1743871841663,-508.69370838,0.00030136,2]
[357183567,1743871841672,-508.62367757,0.00030136,2]
[357183568,1743871841682,-500.0,0.00030136,2]
[357183569,1743871841691,-513.21988476,0.00030136,2]
[357183570,1743871841700,-531.57265854,0.00030136,2]
[357183571,1743871841710,-540.06612147,0.00030136,2]
[357183572,1743871841719,-543.39,0.00030136,2]
[357183573,1743871841729,-500.0,0.00030136,2]
[357183574,1743871841739,-500.0,0.00030136,2]
[357183575,1743871841748,-500.0,0.00030136,2]
[357183576,1743871841758,-509.40959201,0.00030136,2]
[357183577,1743871841768,-514.41309422,0.00030136,2]
[357183578,1743871841778,-500.0,0.00030136,2]
[357183579,1743871841787,-523.69889083,0.00030136,2]
[357183580,1743871841796,-517.07677421,0.00030136,2]
[357183581,1743871841806,-500.0,0.00030136,2]
[357183582,1743871841815,-500.0,0.00030136,2]
[357183583,1743871841825,-500.0,0.00030136,2]
[357183584,1743871841834,-500.0,0.00030136,2]
[357183585,1743871841843,-513.92840069,0.00030136,2]
[357183586,1743871841852,-501.17638583,0.00030136,2]
[357183587,1743871841861,-537.57619233,0.00030136,2]
[357183588,1743871841871,-520.82207226,0.00030136,2]
[357183589,1743871841880,-510.6274634,0.00030136,2]
[357183590,1743871841891,-500.0,0.00030136,2]
[357183591,1743871841901,-533.52015198,0.00030136,2]
[357183592,1743871841911,-508.575437,0.00030136,2]
[357183593,1743871841922,-500.0,0.00030136,2]
[357183594,1743871841932,-501.80137291,0.00030136,2]
[357183595,1743871841942,-2562.27,0.00030136,2]
[357183596,1743871841952,-505.03284088,0.00030136,2]
[357183597,1743871841961,-510.5200197,0.00030136,2]
[357183598,1743871841971,-510.01993929,0.00030136,2]
[357183599,1743871841980,-500.0,0.00030136,2]
[357183600,1743871841990,-505.27721648,0.00030136,2]
[357183601,1743871842000,-521.86833224,0.00030136,2]
[357183602,1743871842009,-567.53311532,0.00030136,2]
[357183603,1743871842019,-500.0,0.00030136,2]
[357183604,1743871842029,-499.53835418,0.00030136,2]
[357183605,1743871842039,-535.73688638,0.00030136,2]
[357183606,1743871842049,-695.81,0.00030136,2]
[357183607,1743871842058,-516.55584019,0.00030136,2]
[357183608,1743871842067,-500.0,0.00030136,2]
[357183609,1743871842077,-563.59972521,0.00030136,2]
[357183610,1743871842086,-539.6816392,0.00030136,2]
[357183611,1743871842096,-533.54266118,0.00030136,2]
[357183612,1743871842106,-377.88263545,0.00030136,2]
[357183613,1743871842115,-500.0,0.00030136,2]
[357183614,1743871842125,-520.89898251,0.00030136,2]
[357183615,1743871842134,-540.00046033,0.00030136,2]
[357183616,1743871842144,-500.0,0.00030136,2]
[357183617,1743871842154,-505.76001783,0.00030136,2]
[357183618,1743871842163,-1000.0,0.00030136,2]
[357183619,1743871842173,-502.57674191,0.00030136,2]
[357183620,1743871842182,-500.0,0.00030136,2]
[357183621,1743871842192,-500.67855421,0.00030136,2]
[357183622,1743871842201,-513.41750003,0.00030136,2]
[357183623,1743871842211,-542.59984048,0.00030136,2]
[357183624,1743871842220,-500.0,0.00030136,2]
[357183625,1743871842230,-528.34457471,0.00030136,2]
[357183626,1743871842240,-505.30049898,0.00030136,2]
[357183627,1743871842250,-532.32590538,0.00030136,2]
[357183628,1743871842259,-527.07461331,0.00030136,2]
[357183629,1743871842269,-532.88741414,0.00030136,2]
[357183630,1743871842279,-500.0,0.00030136,2]
[357183631,1743871842289,-500.0,0.00030136,2]
[357183632,1743871842301,-559.02268331,0.00030136,2]
[357183633,1743871842311,-511.57048149,0.00030136,2]
[357183634,1743871842324,-525.30578907,0.00030136,2]
[357183635,1743871842335,-503.41124588,0.00030136,2]
[357183636,1743871842346,-500.99667471,0.00030136,2]
[357183637,1743871842357,-542.54846224,0.00030136,2]
[357183638,1743871842368,-533.0288932,0.00030136,2]
[357183639,1743871842378,-500.0,0.00030136,2]
[357183640,1743871842388,-516.30838246,0.00030136,2]
[357183641,1743871842397,-517.45562244,0.00030136,2]
[357183642,1743871842407,-500.0,0.00030136,2]
[357183643,1743871842417,-513.22466243,0.00030136,2]
[357183644,1743871842427,-540.54561273,0.00030136,2]
[357183645,1743871842437,-505.54142811,0.00030136,2]
[357183646,1743871842448,-508.48356023,0.00030136,2]
[357183647,1743871842457,-504.38826734,0.00030136,2]
[357183648,1743871842467,-514.57602688,0.00030136,2]
[357183649,1743871842477,-605.16477139,0.00030136,2]
[357183650,1743871842487,-505.42695955,0.00030136,2]
[357183651,1743871842497,-524.74610036,0.00030136,2]
[357183652,1743871842507,-519.69574521,0.00030136,2]
[357183653,1743871842517,-500.0,0.00030136,2]
[357183654,1743871842526,-504.85776083,0.00030136,2]
[357183655,1743871842536,-506.43247146,0.00030136,2]
[357183656,1743871842546,-500.0,0.00030136,2]
[357183657,1743871842555,-539.51556691,0.00030136,2]
[357183658,1743871842565,-500.0,0.00030136,2]
[357183659,1743871842574,-500.0,0.00030136,2]
[357183660,1743871842583,-474.52215222,0.00030136,2]
[357183661,1743871842593,-509.17841323,0.00030136,2]
[357183662,1743871842603,-500.0,0.00030136,2]
[357183663,1743871842612,-500.0,0.00030136,2]
[357183664,1743871842622,-500.0,0.00030136,2]
[357183665,1743871842631,-506.66771448,0.00030136,2]
[357183666,1743871842641,-508.32025515,0.00030136,2]
[357183667,1743871842651,-512.40046317,0.00030136,2]
[357183668,1743871842661,-500.0,0.00030136,2]
[357183669,1743871842671,-500.0,0.00030136,2]
[357183670,1743871842680,-505.58747828,0.00030136,2]
[357183671,1743871842690,-500.0,0.00030136,2]
[357183672,1743871842699,-500.95599673,0.00030136,2]
[357183673,1743871842709,-548.1589485,0.00030136,2]
[357183674,1743871842720,-504.96369823,0.00030136,2]
[357183675,1743871842729,-500.0,0.00030136,2]
[357183676,1743871842739,-500.0,0.00030136,2]
[357183677,1743871842748,-757.7,0.00030136,2]
[357183678,1743871842758,-513.71785263,0.00030136,2]
[357183679,1743871842769,-500.0,0.00030136,2]
[357183680,1743871842779,-518.8387677,0.00030136,2]
[357183681,1743871842888,-515.79,0.00030136,2]
[357183682,1743871842909,-502.80582111,0.00030136,2]
[357183683,1743871842920,-500.0,0.00030136,2]
[357183684,1743871842930,-504.2529706,0.00030136,2]
[357183685,1743871842939,-200.0,0.00030136,2]
[357183686,1743871842949,-523.60423056,0.00030136,2]
[357183687,1743871842958,-500.0,0.00030136,2]
[357183688,1743871842968,-500.0,0.00030136,2]
[357183689,1743871842978,-871.31,0.00030136,2]
[357183690,1743871842987,-502.04955842,0.00030136,2]
[357183691,1743871842997,-514.32793704,0.00030136,2]
[357183692,1743871843006,-500.0,0.00030136,2]
[357183693,1743871843016,-513.54661152,0.00030136,2]
[357183694,1743871843025,-500.0,0.00030136,2]
[357183695,1743871843035,-500.0,0.00030136,2]
[357183696,1743871843044,-500.0,0.00030136,2]
[357183697,1743871843054,-500.0,0.00030136,2]
[357183698,1743871843064,-500.0,0.00030136,2]
[357183699,1743871843074,-536.92936381,0.00030136,2]
[357183700,1743871843083,-523.87806112,0.00030136,2]
[357183701,1743871843093,-507.2041937,0.00030136,2]
[357183702,1743871843103,-500.0,0.00030136,2]
[357183703,1743871843112,-939.25,0.00030136,2]
[357183704,1743871843122,-500.0,0.00030136,2]
[357183705,1743871843131,-505.05791151,0.00030136,2]
[357183706,1743871843142,-500.0,0.00030136,2]
[357183707,1743871843151,-530.07349709,0.00030136,2]
[357183708,1743871843161,-520.1683368,0.00030136,2]
[357183709,1743871843170,-500.0,0.00030136,2]
[357183710,1743871843180,-500.0,0.00030136,2]
[357183711,1743871843189,-500.0,0.00030136,2]
[357183712,1743871843199,-522.58493637,0.00030136,2]
[357183713,1743871843208,-512.55635912,0.00030136,2]
[357183714,1743871843218,-500.0,0.00030136,2]
[357183715,1743871843228,-547.78515397,0.00030136,2]
[357183716,1743871843237,-513.02589585,0.00030136,2]
[357183717,1743871843247,-500.0,0.00030136,2]
[357183718,1743871843256,-528.08023265,0.00030136,2]
[357183719,1743871843266,-507.39865486,0.00030136,2]
[357183720,1743871843276,-500.0,0.00030136,2]
[357183721,1743871843286,-585.48130367,0.00030136,2]
[357183722,1743871843301,-500.0,0.00030136,2]
[357183723,1743871843311,-500.0,0.00030136,2]
[357183724,1743871843321,-510.4517231,0.00030136,2]
[357183725,1743871843331,-502.19733408,0.00030136,2]
[357183726,1743871843340,-499.23510197,0.00030136,2]
[357183727,1743871843349,-509.89907188,0.00030136,2]
[357183728,1743871843358,-505.51659077,0.00030136,2]
[357183729,1743871843367,-500.0,0.00030136,2]
[357183730,1743871843377,-500.0,0.00030136,2]
[357183731,1743871843387,-550.62989531,0.00030136,2]
[357183732,1743871843396,-500.0,0.00030136,2]
[357183733,1743871843407,-300.0,0.00030136,2]
[357183734,1743871843416,-500.0,0.00030136,2]
[357183735,1743871843426,-500.0,0.00030136,2]
[357183736,1743871843435,-500.0,0.00030136,2]
[357183737,1743871843445,-508.70400463,0.00030136,2]
[357183738,1743871843455,-500.0,0.00030136,2]
[357183739,1743871843465,-2016.6204384,0.00030136,30]
[357183740,1743871843475,-528.51735298,0.00030136,2]
[357183741,1743871843485,-500.0,0.00030136,2]
[357183742,1743871843494,-500.0,0.00030136,2]
[357183743,1743871843504,-560.36340117,0.00030136,2]
[357183744,1743871843514,-599.85567057,0.00030136,2]
[357183745,1743871843524,-219.87282087,0.00030136,2]
[357183746,1743871843533,-500.0,0.00030136,2]
[357183747,1743871843542,-500.0,0.00030136,2]
[357183748,1743871843552,-500.0,0.00030136,2]
[357183749,1743871843561,-506.6707021,0.00030136,2]
[357183750,1743871843571,-500.0,0.00030136,2]
[357183751,1743871843580,-500.0,0.00030136,2]
[357183752,1743871843589,-500.0,0.00030136,2]
[357183753,1743871843599,-501.30516266,0.00030136,2]
[357183754,1743871843608,-512.76819733,0.00030136,2]
[357183755,1743871843617,-500.0,0.00030136,2]
[357183756,1743871843627,-502.78583314,0.00030136,2]
[357183757,1743871843636,-500.0,0.00030136,2]
[357183758,1743871843646,-500.0,0.00030136,2]
[357183759,1743871843655,-501.1530157,0.00030136,2]
[357183760,1743871843664,-507.75610472,0.00030136,2]
[357183761,1743871843674,-500.0,0.00030136,2]
[357183762,1743871843683,-500.0,0.00030136,2]
[357183763,1743871843693,-509.31081528,0.00030136,2]
[357183764,1743871843702,-538.83709021,0.00030136,2]
[357183765,1743871843712,-536.57893565,0.00030136,2]
[357183766,1743871843721,-500.0,0.00030136,2]
[357183767,1743871843731,-500.0,0.00030136,2]
[357183768,1743871843740,-500.0,0.00030136,2]
[357183769,1743871843750,-629.48,0.00030136,2]
[357183770,1743871843759,-500.0,0.00030136,2]
[357183771,1743871843768,-500.0,0.00030136,2]
[357183772,1743871843778,-500.0,0.00030136,2]
[357183773,1743871843787,-500.0,0.00030136,2]
[357183774,1743871843797,-500.0,0.00030136,2]
[357183775,1743871843806,-500.0,0.00030136,2]
[357183776,1743871843815,-500.0,0.00030136,2]
[357183777,1743871843824,-523.24389719,0.00030136,2]
[357183778,1743871843834,-500.0,0.00030136,2]
[357183779,1743871843843,-500.0,0.00030136,2]
[357183780,1743871843852,-500.0,0.00030136,2]
[357183781,1743871843862,-500.0,0.00030136,2]
[357183782,1743871843871,-501.73088653,0.00030136,2]
[357183783,1743871843881,-515.62264226,0.00030136,2]
[357183784,1743871843890,-500.0,0.00030136,2]
[357183785,1743871843899,-500.0,0.00030136,2]
[357183786,1743871843909,-517.51374422,0.00030136,2]
[357183787,1743871843918,-500.0,0.00030136,2]
[357183788,1743871843927,-500.0,0.00030136,2]
[357183789,1743871843936,-783.62,0.00030136,2]
[357183790,1743871843945,-513.34422479,0.00030136,2]
[357183791,1743871843955,-500.0,0.00030136,2]
[357183792,1743871843964,-500.0,0.00030136,2]
[357183793,1743871843973,-500.0,0.00030136,2]
[357183794,1743871843984,-500.0,0.00030136,2]
[357183795,1743871843993,-500.0,0.00030136,2]
[357183796,1743871844002,-538.0436804,0.00030136,2]
[357183797,1743871844011,-500.0,0.00030136,2]
[357183798,1743871844019,-500.0,0.00030136,2]
[357183799,1743871844029,-500.0,0.00030136,2]
[357183800,1743871844038,-518.40917943,0.00030136,2]
[357183801,1743871844047,-500.0,0.00030136,2]
[357183802,1743871844057,-509.50283218,0.00030136,2]
[357183803,1743871844066,-500.0,0.00030136,2]
[357183804,1743871844077,-500.0,0.00030136,2]
[357183805,1743871844086,-500.0,0.00030136,2]
[357183806,1743871844095,-561.1,0.00030136,2]
[357183807,1743871844104,-512.31855339,0.00030136,2]
[357183808,1743871844113,-500.45104923,0.00030136,2]
[357183809,1743871844123,-530.6628282,0.00030136,2]
[357183810,1743871844131,-500.0,0.00030136,2]
[357183811,1743871844141,-504.12228323,0.00030136,2]
[357183812,1743871844150,-500.0,0.00030136,2]
[357183813,1743871844160,-500.0,0.00030136,2]
[357183814,1743871844170,-500.0,0.00030136,2]
[357183815,1743871844180,-500.0,0.00030136,2]
[357183816,1743871844189,-500.0,0.00030136,2]
[357183817,1743871844199,-500.0,0.00030136,2]
[357183818,1743871844210,-500.0,0.00030136,2]
[357183820,1743871844219,-673.31,0.00030136,2]
[357183821,1743871844229,-521.80521303,0.00030136,2]
[357183822,1743871844239,-500.0,0.00030136,2]
[357183823,1743871844248,-541.92229321,0.00030136,2]
[357183824,1743871844258,-500.0,0.00030136,2]
[357183825,1743871844267,-507.77432007,0.00030136,2]
[357183826,1743871844276,-1406.55,0.00030136,2]
[357183827,1743871844286,-509.52156393,0.00030136,2]
[357183828,1743871844300,-500.0,0.00030136,2]
[357183829,1743871844309,-500.0,0.00030136,2]
[357183830,1743871844319,-525.34622229,0.00030136,2]
[357183831,1743871844329,-500.0,0.00030136,2]
[357183833,1743871844423,-500.0,0.00030136,2]
[357183834,1743871844433,-383.13372121,0.00030136,2]
[357183835,1743871844443,-500.0,0.00030136,2]
[357183836,1743871844452,-500.0,0.00030136,2]
[357183837,1743871844462,-500.0,0.00030136,2]
[357183838,1743871844472,-500.0,0.00030136,2]
[357183839,1743871844482,-500.0,0.00030136,2]
[357183840,1743871844492,-500.0,0.00030136,2]
[357183841,1743871844502,-609.50709333,0.00030136,2]
[357183842,1743871844512,-500.0,0.00030136,2]
[357183843,1743871844522,-514.70146715,0.00030136,2]
[357183844,1743871844532,-17329.31,0.00030136,2]
[357183845,1743871844541,-500.0,0.00030136,2]
[357183846,1743871844551,-500.0,0.00030136,2]
[357183847,1743871844560,-500.0,0.00030136,2]
[357183848,1743871844569,-510.25,0.00030136,2]
[357183849,1743871844579,-500.0,0.00030136,2]
[357183850,1743871844588,-520.07271644,0.00030136,2]
[357183851,1743871844598,-500.0,0.00030136,2]
[357183852,1743871844607,-500.0,0.00030136,2]
[357183853,1743871844616,-500.0,0.00030136,2]
[357183854,1743871844626,-515.37137972,0.00030136,2]
[357183855,1743871844635,-1500.0,0.00030136,2]
[357183856,1743871844645,-500.0,0.00030136,2]
[357183857,1743871844654,-500.0,0.00030136,2]
[357183858,1743871844663,-1195.62,0.00030136,2]
[357183859,1743871844672,-500.0,0.00030136,2]
[357183860,1743871844682,-500.0,0.00030136,2]
[357183861,1743871844691,-1437.78,0.00030136,2]
[357183862,1743871844700,-500.0,0.00030136,2]
[357183863,1743871844710,-500.0,0.00030136,2]
[357183864,1743871844719,-500.0,0.00030136,2]
[357183865,1743871844728,-500.0,0.00030136,2]
[357183866,1743871844737,-500.0,0.00030136,2]
[357183867,1743871844746,-500.0,0.00030136,2]
[357183868,1743871844755,-508.13696865,0.00030136,2]
[357183869,1743871844764,-241.45718178,0.00030136,2]
[357183870,1743871844773,-500.0,0.00030136,2]
[357183871,1743871844782,-511.1968355,0.00030136,2]
[357183872,1743871844792,-500.0,0.00030136,2]
[357183873,1743871844801,-500.0,0.00030136,2]
[357183874,1743871844810,-500.0,0.00030136,2]
[357183875,1743871844819,-508.70489481,0.00030136,2]
[357183876,1743871844828,-500.0,0.00030136,2]
[357183877,1743871844838,-587.70207568,0.00030136,2]
[357183878,1743871844847,-563.29650031,0.00030136,2]
[357183879,1743871844857,-500.0,0.00030136,2]
[357183880,1743871844866,-500.0,0.00030136,2]
[357183881,1743871844876,-600.12,0.00030136,2]
[357183882,1743871844885,-500.0,0.00030136,2]
[357183883,1743871844895,-500.0,0.00030136,2]
[357183884,1743871844904,-500.0,0.00030136,2]
[357183885,1743871844915,-718.29,0.00030136,2]
[357183886,1743871844925,-500.0,0.00030136,2]
[357183887,1743871844935,-218.38751109,0.00030136,2]
[357183888,1743871844946,-500.0,0.00030136,2]
[357183889,1743871844956,-500.0,0.00030136,2]
[357183890,1743871844966,-500.0,0.00030136,2]
[357183891,1743871844975,-500.0,0.00030136,2]
[357183892,1743871844984,-500.0,0.00030136,2]
[357183893,1743871844993,-645.64,0.00030136,2]
[357183894,1743871845002,-500.0,0.00030136,2]
[357183895,1743871845011,-500.0,0.00030136,2]
[357183896,1743871845020,-500.0,0.00030136,2]
[357183897,1743871845030,-501.95115298,0.00030136,2]
[357183898,1743871845039,-971.91,0.00030136,2]
[357183899,1743871845049,-500.0,0.00030136,2]
[357183900,1743871845058,-500.0,0.00030136,2]
[357183902,1743871845067,-500.0,0.00030136,2]
[357183903,1743871845076,-566.83563287,0.00030136,2]
[357183904,1743871845085,-500.0,0.00030136,2]
[357183905,1743871845094,-507.14495542,0.00030136,2]
[357183906,1743871845104,-500.0,0.00030136,2]
[357183907,1743871845113,-500.0,0.00030136,2]
[357183908,1743871845122,-500.0,0.00030136,2]
[357183909,1743871845132,-509.55147727,0.00030136,2]
[357183910,1743871845141,-500.0,0.00030136,2]
[357183911,1743871845151,-500.0,0.00030136,2]
[357183912,1743871845160,-509.25463678,0.00030136,2]
[357183913,1743871845170,-500.0,0.00030136,2]
[357183914,1743871845179,-500.0,0.00030136,2]
[357183915,1743871845189,-500.0,0.00030136,2]
[357183916,1743871845198,-503.94508787,0.00030136,2]
[357183917,1743871845209,-754.3,0.00030136,2]
[357183918,1743871845219,-500.0,0.00030136,2]
[357183919,1743871845229,-500.0,0.00030136,2]
[357183920,1743871845239,-1006.43,0.00030136,2]
[357183921,1743871845249,-503.76382507,0.00030136,2]
[357183922,1743871845259,-500.0,0.00030136,2]
[357183923,1743871845269,-500.0,0.00030136,2]
[357183924,1743871845279,-500.0,0.00030136,2]
[357183925,1743871845290,-500.0,0.00030136,2]
[357183926,1743871845302,-529.14735315,0.00030136,2]
[357183927,1743871845312,-525.45409081,0.00030136,7]
[357183928,1743871845323,-500.0,0.00030136,2]